[Event "*** Titled Tuesday Blitz"]
[Site "Chess.com"]
[Date "2018.10.02"]
[Round "8"]
[White "Saitama_Hero"]
[Black "FearNoEvil12"]
[Result "1-0"]
[WhiteElo "2248"]
[BlackElo "2026"]
[TimeControl "180+2"]
[EndTime "14:50:18 PDT"]
[Termination "Saitama_Hero won by resignation"]

1. d4 {[%clk 0:03:01.9]} 1... b5 {[%clk 0:02:59.7]} 2. e4 {[%clk 0:03:01.5]}
2... a6 {[%clk 0:02:58.7]} 3. Bd3 {[%clk 0:03:02.9]} 3... Bb7 {[%clk 0:02:58.9]}
4. Nf3 {[%clk 0:03:02.1]} 4... e6 {[%clk 0:03:00.4]} 5. O-O {[%clk 0:03:02.4]}
5... Nf6 {[%clk 0:03:01.9]} 6. Qe2 {[%clk 0:02:59.4]} 6... d6 {[%clk 0:03:02.7]}
7. c3 {[%clk 0:02:55.8]} 7... Nbd7 {[%clk 0:03:02.8]} 8. Nbd2 {[%clk 0:02:56]}
8... h6 {[%clk 0:03:02.4]} 9. Re1 {[%clk 0:02:56.6]} 9... g5 {[%clk 0:03:02.8]}
10. Nf1 {[%clk 0:02:56]} 10... g4 {[%clk 0:03:01.1]} 11. N3d2 {[%clk 0:02:56.2]}
11... h5 {[%clk 0:03:01.7]} 12. f4 {[%clk 0:02:50]} 12... gxf3 {[%clk
0:03:01.1]} 13. Nxf3 {[%clk 0:02:50.2]} 13... Rg8 {[%clk 0:02:59.9]} 14. Bg5
{[%clk 0:02:43.7]} 14... Be7 {[%clk 0:03:00]} 15. h4 {[%clk 0:02:43.5]} 15...
Ng4 {[%clk 0:02:59.7]} 16. Ng3 {[%clk 0:02:43.7]} 16... Bxg5 {[%clk 0:02:48.2]}
17. Nxg5 {[%clk 0:02:42.6]} 17... Rxg5 {[%clk 0:02:49.1]} 18. hxg5 {[%clk
0:02:41.8]} 18... Qxg5 {[%clk 0:02:50.6]} 19. a4 {[%clk 0:02:22.6]} 19... h4
{[%clk 0:02:42.1]} 20. Nf1 {[%clk 0:02:19.8]} 20... h3 {[%clk 0:02:39.3]} 21.
axb5 {[%clk 0:01:56.5]} 21... a5 {[%clk 0:02:24.9]} 22. Qf3 {[%clk 0:01:12.7]}
22... Ndf6 {[%clk 0:02:13.3]} 23. Qxh3 {[%clk 0:01:08.3]} 23... Ke7 {[%clk
0:02:13.1]} 24. Ne3 {[%clk 0:01:02.4]} 24... Rg8 {[%clk 0:02:03.6]} 25. Nxg4
{[%clk 0:00:56.7]} 25... Nxg4 {[%clk 0:02:03.3]} 26. Re2 {[%clk 0:00:50.9]}
26... Nf6 {[%clk 0:01:27.7]} 27. Rf1 {[%clk 0:00:48.8]} 27... Rg6 {[%clk
0:01:22]} 28. Ref2 {[%clk 0:00:47.6]} 28... Rh6 {[%clk 0:01:22]} 29. Qf3 {[%clk
0:00:45.1]} 29... Kd8 {[%clk 0:01:16.7]} 30. Qf4 {[%clk 0:00:31.8]} 30... Qh5
{[%clk 0:01:15.4]} 31. Qxh6 {[%clk 0:00:32.2]} 31... Qxh6 {[%clk 0:01:13]} 32.
Rxf6 {[%clk 0:00:34.1]} 32... Qe3+ {[%clk 0:01:13.6]} 33. R1f2 {[%clk 0:00:33]}
33... Qxd3 {[%clk 0:01:13.9]} 34. Rxf7 {[%clk 0:00:34.9]} 34... Qe3 {[%clk
0:01:02.6]} 35. Rh7 {[%clk 0:00:31.6]} 35... Bxe4 {[%clk 0:00:59.1]} 36. Rh3
{[%clk 0:00:29.4]} 36... Qc1+ {[%clk 0:00:50.8]} 37. Kh2 {[%clk 0:00:24.5]}
37... Kc8 {[%clk 0:00:50.2]} 38. Rg3 {[%clk 0:00:11.9]} 38... Kb7 {[%clk
0:00:49.8]} 39. Rh3 {[%clk 0:00:10.4]} 39... Bf5 {[%clk 0:00:48.7]} 40. Rhf3
{[%clk 0:00:08.5]} 40... Qh6+ {[%clk 0:00:49]} 41. Kg1 {[%clk 0:00:08.3]} 41...
Qc1+ {[%clk 0:00:49]} 42. Kh2 {[%clk 0:00:08.6]} 42... Be4 {[%clk 0:00:49.9]}
43. Rh3 {[%clk 0:00:08.7]} 43... Kb6 {[%clk 0:00:48.9]} 44. Rg3 {[%clk
0:00:09.3]} 44... Kxb5 {[%clk 0:00:49]} 45. Rh3 {[%clk 0:00:10.4]} 45... a4
{[%clk 0:00:49]} 46. Rg3 {[%clk 0:00:11]} 46... Bf5 {[%clk 0:00:46.6]} 47. Rgf3
{[%clk 0:00:10.7]} 47... d5 {[%clk 0:00:45.2]} 48. Rg3 {[%clk 0:00:11.8]} 48...
Kc4 {[%clk 0:00:45.1]} 49. Rgf3 {[%clk 0:00:13.2]} 49... c5 {[%clk 0:00:42.9]}
50. dxc5 {[%clk 0:00:13.1]} 50... Kxc5 {[%clk 0:00:44]} 51. Rf4 {[%clk
0:00:14.7]} 51... Qd1 {[%clk 0:00:42.5]} 52. Kg3 {[%clk 0:00:13.1]} 52... Be4
{[%clk 0:00:39.1]} 53. Kh2 {[%clk 0:00:13.8]} 53... Qh5+ {[%clk 0:00:35.2]} 54.
Kg3 {[%clk 0:00:14.6]} 54... Qg5+ {[%clk 0:00:35.6]} 55. Kh2 {[%clk 0:00:16]}
55... e5 {[%clk 0:00:34.8]} 56. Rf8 {[%clk 0:00:14.8]} 56... d4 {[%clk
0:00:30.9]} 57. cxd4+ {[%clk 0:00:14.3]} 57... Kxd4 {[%clk 0:00:31.3]} 58. R8f7
{[%clk 0:00:10]} 58... Bd5 {[%clk 0:00:30.9]} 59. R7f5 {[%clk 0:00:09.1]} 59...
Qh4+ {[%clk 0:00:30.4]} 60. Kg1 {[%clk 0:00:09.4]} 60... Be4 {[%clk 0:00:26.9]}
61. Rf8 {[%clk 0:00:08.9]} 61... Bd3 {[%clk 0:00:26.8]} 62. R8f7 {[%clk
0:00:08.1]} 62... e4 {[%clk 0:00:27.4]} 63. Rd7+ {[%clk 0:00:08.5]} 63... Ke3
{[%clk 0:00:26.6]} 64. Rdf7 {[%clk 0:00:10]} 64... Qg5 {[%clk 0:00:23.1]} 65.
Kh2 {[%clk 0:00:09.1]} 65... Kd4 {[%clk 0:00:20.8]} 66. Kg1 {[%clk 0:00:09.8]}
66... Qg4 {[%clk 0:00:20.3]} 67. R2f4 {[%clk 0:00:10.6]} 67... Qg3 {[%clk
0:00:20.6]} 68. Rf2 {[%clk 0:00:08.3]} 68... Qe3 {[%clk 0:00:20.8]} 69. Kh2
{[%clk 0:00:07.3]} 69... Qh6+ {[%clk 0:00:20.5]} 70. Kg3 {[%clk 0:00:07.1]}
70... e3 {[%clk 0:00:21.2]} 71. R2f4+ {[%clk 0:00:07.3]} 71... Ke5 {[%clk
0:00:21]} 72. Kf3 {[%clk 0:00:06.5]} 72... e2 {[%clk 0:00:20.9]} 73. Re7+ {[%clk
0:00:04.9]} 73... Kd6 {[%clk 0:00:21]} 74. Re3 {[%clk 0:00:05.6]} 74... Qg6
{[%clk 0:00:19.8]} 75. Rd4+ {[%clk 0:00:05.4]} 75... Kc5 {[%clk 0:00:19.8]} 76.
Rdxd3 {[%clk 0:00:07.3]} 76... Qh5+ {[%clk 0:00:17.4]} 77. Kf2 {[%clk
0:00:07.2]} 77... Qg4 {[%clk 0:00:11.9]} 78. Rc3+ {[%clk 0:00:08.2]} 78... Kb4
{[%clk 0:00:12]} 79. Rxe2 {[%clk 0:00:10.1]} 79... Qd4+ {[%clk 0:00:11.3]} 80.
Ke1 {[%clk 0:00:12]} 80... Qg1+ {[%clk 0:00:11.3]} 81. Kd2 {[%clk 0:00:12.9]}
81... Qd4+ {[%clk 0:00:12.2]} 82. Kc2 {[%clk 0:00:13.8]} 82... Qg4 {[%clk
0:00:10.4]} 83. Rd2 {[%clk 0:00:15.2]} 83... Qe4+ {[%clk 0:00:10.4]} 84. Rcd3
{[%clk 0:00:16.2]} 84... Qc4+ {[%clk 0:00:10.5]} 85. Rc3 {[%clk 0:00:17.1]}
85... Qe4+ {[%clk 0:00:12]} 86. Kc1 {[%clk 0:00:17.5]} 86... Qe1+ {[%clk
0:00:12.3]} 87. Rd1 {[%clk 0:00:18]} 87... Qe4 {[%clk 0:00:12.2]} 88. Rcd3
{[%clk 0:00:16.7]} 88... Qc4+ {[%clk 0:00:12]} 89. Kb1 {[%clk 0:00:16.7]} 89...
Qe4 {[%clk 0:00:12.6]} 90. Ka1 {[%clk 0:00:16.5]} 90... Qxg2 {[%clk 0:00:12.7]}
91. Rd4+ {[%clk 0:00:17]} 91... Kb5 {[%clk 0:00:13]} 92. R4d2 {[%clk 0:00:16.7]}
92... Qe4 {[%clk 0:00:12.2]} 93. Rd3 {[%clk 0:00:17.2]} 93... Qc4 {[%clk
0:00:09.4]} 94. Rd5+ {[%clk 0:00:17.6]} 94... Kc6 {[%clk 0:00:09.6]} 95. R5d4
{[%clk 0:00:17.4]} 95... Qc5 {[%clk 0:00:09.4]} 96. R4d3 {[%clk 0:00:17.9]}
96... Kb5 {[%clk 0:00:09.6]} 97. Rd5 {[%clk 0:00:17.6]} 97... Kc4 {[%clk
0:00:10]} 98. Rxc5+ {[%clk 0:00:17.8]} 98... Kxc5 {[%clk 0:00:11.3]} 99. Ka2
{[%clk 0:00:18.8]} 99... Kb4 {[%clk 0:00:13.2]} 100. Rd4+ {[%clk 0:00:18.4]}
100... Kb5 {[%clk 0:00:15.1]} 101. Ka3 {[%clk 0:00:19.4]} 101... Ka5 {[%clk
0:00:16.9]} 102. Rxa4+ {[%clk 0:00:20.4]} 102... Kb5 {[%clk 0:00:18.5]} 103. Rf4
{[%clk 0:00:20.7]} 1-0

[Event "*** Titled Tuesday Blitz"]
[Site "Chess.com"]
[Date "2018.10.02"]
[Round "9"]
[White "francogreek"]
[Black "evgenysharapov"]
[Result "0-1"]
[WhiteElo "2362"]
[BlackElo "2450"]
[TimeControl "180+2"]
[EndTime "14:52:58 PDT"]
[Termination "evgenysharapov won by resignation"]

1. Nf3 {[%clk 0:03:01.9]} 1... c5 {[%clk 0:03:00.1]} 2. g3 {[%clk 0:03:03.8]}
2... Nc6 {[%clk 0:03:00.3]} 3. Bg2 {[%clk 0:03:05.7]} 3... g6 {[%clk 0:03:00.9]}
4. O-O {[%clk 0:03:07]} 4... Bg7 {[%clk 0:03:01.5]} 5. d3 {[%clk 0:03:06.4]}
5... e5 {[%clk 0:03:01.5]} 6. Nbd2 {[%clk 0:03:07.1]} 6... Nge7 {[%clk
0:03:01.7]} 7. e4 {[%clk 0:03:08.2]} 7... O-O {[%clk 0:03:02.1]} 8. Re1 {[%clk
0:03:08.2]} 8... d6 {[%clk 0:03:02.3]} 9. a4 {[%clk 0:03:09.7]} 9... Rb8 {[%clk
0:03:02.7]} 10. Nc4 {[%clk 0:03:10.9]} 10... a6 {[%clk 0:03:02]} 11. a5 {[%clk
0:03:11.5]} 11... Be6 {[%clk 0:03:02.3]} 12. Bd2 {[%clk 0:03:13.2]} 12... f6
{[%clk 0:02:56.5]} 13. c3 {[%clk 0:03:09.1]} 13... d5 {[%clk 0:02:57.1]} 14.
exd5 {[%clk 0:03:08.7]} 14... Bxd5 {[%clk 0:02:57.6]} 15. Qc2 {[%clk 0:03:07.4]}
15... e4 {[%clk 0:02:54.6]} 16. Nh4 {[%clk 0:03:03.4]} 16... exd3 {[%clk
0:02:53.8]} 17. Qxd3 {[%clk 0:03:01.6]} 17... Bxg2 {[%clk 0:02:50.7]} 18. Qxd8
{[%clk 0:03:03.5]} 18... Rfxd8 {[%clk 0:02:49.3]} 19. Nxg2 {[%clk 0:03:05.4]}
19... Ne5 {[%clk 0:02:29.4]} 20. Bf4 {[%clk 0:03:02.6]} 20... N7c6 {[%clk
0:02:22.4]} 21. Be3 {[%clk 0:03:02.4]} 21... Nxc4 {[%clk 0:02:22.3]} 0-1

[Event "*** Titled Tuesday Blitz"]
[Site "Chess.com"]
[Date "2018.10.02"]
[Round "9"]
[White "Aklanion"]
[Black "ahmadzada13"]
[Result "0-1"]
[WhiteElo "2204"]
[BlackElo "2649"]
[TimeControl "180+2"]
[EndTime "14:56:25 PDT"]
[Termination "ahmadzada13 won on time"]

1. d4 {[%clk 0:02:44.9]} 1... Nf6 {[%clk 0:02:58.3]} 2. Nf3 {[%clk 0:02:44.5]}
2... e6 {[%clk 0:03:00.2]} 3. g3 {[%clk 0:02:44.2]} 3... b6 {[%clk 0:02:59.3]}
4. Bg2 {[%clk 0:02:44]} 4... Bb7 {[%clk 0:03:00.9]} 5. O-O {[%clk 0:02:45.4]}
5... c5 {[%clk 0:03:01]} 6. c3 {[%clk 0:02:45.6]} 6... Be7 {[%clk 0:02:54.7]} 7.
Bf4 {[%clk 0:02:10.2]} 7... Nc6 {[%clk 0:02:52.4]} 8. e3 {[%clk 0:02:03.8]} 8...
h6 {[%clk 0:02:49]} 9. h4 {[%clk 0:01:59.7]} 9... Nd5 {[%clk 0:02:44.9]} 10. Be5
{[%clk 0:01:57]} 10... d6 {[%clk 0:02:38.1]} 11. c4 {[%clk 0:01:56.2]} 11...
dxe5 {[%clk 0:02:32.4]} 12. cxd5 {[%clk 0:01:56.6]} 12... exd5 {[%clk
0:02:32.9]} 13. Nxe5 {[%clk 0:01:54.7]} 13... Nxe5 {[%clk 0:02:29.5]} 14. dxe5
{[%clk 0:01:56.6]} 14... Qd7 {[%clk 0:02:31.2]} 15. Nc3 {[%clk 0:01:55]} 15...
O-O-O {[%clk 0:02:32.1]} 16. a3 {[%clk 0:01:51.5]} 16... g5 {[%clk 0:02:29.7]}
17. h5 {[%clk 0:01:39]} 17... Qe6 {[%clk 0:02:24.4]} 18. a4 {[%clk 0:01:35]}
18... Qxe5 {[%clk 0:02:17.3]} 19. a5 {[%clk 0:01:27.3]} 19... Rd7 {[%clk
0:02:13.9]} 20. axb6 {[%clk 0:01:22.4]} 20... axb6 {[%clk 0:02:15.8]} 21. Ra7
{[%clk 0:01:23.9]} 21... Rhd8 {[%clk 0:02:05.9]} 22. Qa4 {[%clk 0:01:08.5]}
22... f5 {[%clk 0:01:53.7]} 0-1

[Event "*** Titled Tuesday Blitz"]
[Site "Chess.com"]
[Date "2018.10.02"]
[Round "9"]
[White "Lovkov_Roman"]
[Black "sergoy"]
[Result "0-1"]
[WhiteElo "2644"]
[BlackElo "2791"]
[TimeControl "180+2"]
[EndTime "14:57:08 PDT"]
[Termination "sergoy won by resignation"]

1. e4 {[%clk 0:03:01.9]} 1... c5 {[%clk 0:02:56.8]} 2. Nf3 {[%clk 0:03:02.2]}
2... e6 {[%clk 0:02:58.3]} 3. d4 {[%clk 0:03:01]} 3... cxd4 {[%clk 0:03:00.2]}
4. Nxd4 {[%clk 0:03:02.3]} 4... Nc6 {[%clk 0:03:02.1]} 5. Nxc6 {[%clk
0:03:02.7]} 5... bxc6 {[%clk 0:03:02.9]} 6. Bd3 {[%clk 0:02:59.6]} 6... d5
{[%clk 0:03:04.3]} 7. O-O {[%clk 0:02:59.8]} 7... Nf6 {[%clk 0:03:05.9]} 8. Nd2
{[%clk 0:03:00.4]} 8... Be7 {[%clk 0:03:06.8]} 9. b3 {[%clk 0:02:57.4]} 9... Bb7
{[%clk 0:03:08.3]} 10. Bb2 {[%clk 0:02:57.3]} 10... O-O {[%clk 0:03:09.9]} 11.
Qf3 {[%clk 0:02:56.9]} 11... c5 {[%clk 0:03:09.8]} 12. exd5 {[%clk 0:02:44.4]}
12... Nxd5 {[%clk 0:03:10]} 13. Qe4 {[%clk 0:02:33.7]} 13... g6 {[%clk
0:03:09.1]} 14. Nf3 {[%clk 0:02:12.8]} 14... Bf6 {[%clk 0:02:43.6]} 15. Ne5
{[%clk 0:02:01.4]} 15... Rb8 {[%clk 0:02:40.2]} 16. Qg4 {[%clk 0:01:57.7]} 16...
Nb4 {[%clk 0:02:38.2]} 17. Rad1 {[%clk 0:01:55.4]} 17... Qc7 {[%clk 0:02:34.5]}
18. Bxg6 {[%clk 0:00:57.7]} 18... hxg6 {[%clk 0:02:00.6]} 19. Rd7 {[%clk
0:00:46]} 19... Bxe5 {[%clk 0:01:59.2]} 20. Rxc7 {[%clk 0:00:44.3]} 20... Bxc7
{[%clk 0:02:01.1]} 21. Qh4 {[%clk 0:00:31.6]} 21... e5 {[%clk 0:01:15.3]} 22. f4
{[%clk 0:00:30.9]} 22... Rbd8 {[%clk 0:01:15.1]} 23. Bc3 {[%clk 0:00:27.7]}
23... Nd5 {[%clk 0:01:14.1]} 24. Bxe5 {[%clk 0:00:18.6]} 24... Bxe5 {[%clk
0:01:13.7]} 25. fxe5 {[%clk 0:00:20.5]} 25... Ne3 {[%clk 0:01:15.3]} 26. Rc1
{[%clk 0:00:19.8]} 26... Rd2 {[%clk 0:01:14.9]} 0-1

[Event "*** Titled Tuesday Blitz"]
[Site "Chess.com"]
[Date "2018.10.02"]
[Round "9"]
[White "Maikrosoft63"]
[Black "Last7Samurai"]
[Result "0-1"]
[WhiteElo "2569"]
[BlackElo "2739"]
[TimeControl "180+2"]
[EndTime "14:57:16 PDT"]
[Termination "Last7Samurai won by resignation"]

1. e4 {[%clk 0:03:01.8]} 1... e5 {[%clk 0:03:00.1]} 2. Nf3 {[%clk 0:03:02.8]}
2... Nc6 {[%clk 0:03:01.1]} 3. Bc4 {[%clk 0:03:03.9]} 3... Bc5 {[%clk
0:03:01.6]} 4. d3 {[%clk 0:03:04.5]} 4... Nf6 {[%clk 0:03:02.4]} 5. Nbd2 {[%clk
0:03:05.1]} 5... a6 {[%clk 0:03:03.3]} 6. c3 {[%clk 0:03:05.3]} 6... Ba7 {[%clk
0:03:04]} 7. O-O {[%clk 0:03:04.3]} 7... h6 {[%clk 0:03:04.9]} 8. h3 {[%clk
0:03:05]} 8... d6 {[%clk 0:03:04.6]} 9. Re1 {[%clk 0:03:06.3]} 9... g5 {[%clk
0:03:04.3]} 10. Nf1 {[%clk 0:02:58.6]} 10... g4 {[%clk 0:03:03.9]} 11. hxg4
{[%clk 0:03:00]} 11... Bxg4 {[%clk 0:02:52.3]} 12. Be3 {[%clk 0:03:00.4]} 12...
Rg8 {[%clk 0:02:50.8]} 13. Bxa7 {[%clk 0:02:59.9]} 13... Rxa7 {[%clk 0:02:44.2]}
14. Ng3 {[%clk 0:02:55.3]} 14... Qd7 {[%clk 0:02:38.1]} 15. d4 {[%clk
0:02:53.5]} 15... Nh5 {[%clk 0:01:50.2]} 16. dxe5 {[%clk 0:02:30.9]} 16... Nxg3
{[%clk 0:01:45.8]} 17. fxg3 {[%clk 0:02:31.2]} 17... Bxf3 {[%clk 0:01:44]} 18.
e6 {[%clk 0:02:21.4]} 18... Qxe6 {[%clk 0:01:28]} 19. Qb3 {[%clk 0:01:32.2]}
19... Qg6 {[%clk 0:01:16.6]} 20. Rf1 {[%clk 0:01:19.7]} 20... Qxg3 {[%clk
0:01:16.5]} 21. Bxf7+ {[%clk 0:01:20.2]} 21... Kd8 {[%clk 0:01:13.4]} 22. Rf2
{[%clk 0:01:17.5]} 22... Bxg2 {[%clk 0:01:10.5]} 23. Bxg8 {[%clk 0:01:10.8]}
23... Bxe4+ {[%clk 0:01:06.7]} 24. Kf1 {[%clk 0:01:07.5]} 24... Bd3+ {[%clk
0:01:07.8]} 25. Re2 {[%clk 0:00:49.7]} 25... Qf3+ {[%clk 0:01:05.3]} 26. Kg1
{[%clk 0:00:51]} 26... Bxe2 {[%clk 0:01:05.4]} 27. Bd5 {[%clk 0:00:44.1]} 27...
Qg3+ {[%clk 0:01:01.4]} 28. Bg2 {[%clk 0:00:44.3]} 28... Bf3 {[%clk 0:00:58.1]}
0-1

[Event "*** Titled Tuesday Blitz"]
[Site "Chess.com"]
[Date "2018.10.02"]
[Round "9"]
[White "Kouzari"]
[Black "maciek_92"]
[Result "1-0"]
[WhiteElo "2495"]
[BlackElo "2613"]
[TimeControl "180+2"]
[EndTime "14:57:17 PDT"]
[Termination "Kouzari won by resignation"]

1. d4 {[%clk 0:03:01.9]} 1... Nf6 {[%clk 0:02:58.9]} 2. c4 {[%clk 0:03:03.8]}
2... e6 {[%clk 0:03:00.1]} 3. Nc3 {[%clk 0:03:05]} 3... Bb4 {[%clk 0:03:01.3]}
4. g3 {[%clk 0:03:06.5]} 4... c5 {[%clk 0:03:01.9]} 5. dxc5 {[%clk 0:03:05.9]}
5... Na6 {[%clk 0:02:57]} 6. Bg2 {[%clk 0:03:06.9]} 6... Nxc5 {[%clk 0:02:58.4]}
7. Nh3 {[%clk 0:03:07.9]} 7... O-O {[%clk 0:02:35.7]} 8. O-O {[%clk 0:03:08.1]}
8... Bxc3 {[%clk 0:02:20.9]} 9. bxc3 {[%clk 0:03:08.9]} 9... d6 {[%clk
0:02:22.8]} 10. Nf4 {[%clk 0:03:02.7]} 10... Qc7 {[%clk 0:02:14.5]} 11. Nd3
{[%clk 0:02:55.9]} 11... Rd8 {[%clk 0:02:05.1]} 12. Bg5 {[%clk 0:02:55.8]} 12...
Ncd7 {[%clk 0:02:03.5]} 13. Qb3 {[%clk 0:02:49.2]} 13... h6 {[%clk 0:02:04.3]}
14. Be3 {[%clk 0:02:26.8]} 14... Nc5 {[%clk 0:02:01.7]} 15. Bxc5 {[%clk
0:02:13.1]} 15... dxc5 {[%clk 0:02:03.6]} 16. Qa3 {[%clk 0:02:08.9]} 16... Nd7
{[%clk 0:02:00.1]} 17. Rfd1 {[%clk 0:02:07.8]} 17... Re8 {[%clk 0:01:59.2]} 18.
f4 {[%clk 0:01:36]} 18... a6 {[%clk 0:01:39.9]} 19. Rab1 {[%clk 0:01:29.5]}
19... Rb8 {[%clk 0:01:40.7]} 20. Qc1 {[%clk 0:01:27]} 20... b6 {[%clk
0:01:40.5]} 21. Qe3 {[%clk 0:01:26.2]} 21... Bb7 {[%clk 0:01:38.5]} 22. Bxb7
{[%clk 0:01:26.7]} 22... Qxb7 {[%clk 0:01:38.5]} 23. Ne5 {[%clk 0:01:27.4]}
23... Nf6 {[%clk 0:01:35.5]} 24. Rd6 {[%clk 0:01:26.5]} 24... Qc7 {[%clk
0:01:32.7]} 25. Rc6 {[%clk 0:01:22]} 25... Qa7 {[%clk 0:01:32.2]} 26. Rd1 {[%clk
0:00:59.4]} 26... Red8 {[%clk 0:01:29]} 27. Rcd6 {[%clk 0:00:59]} 27... Qc7
{[%clk 0:01:28.1]} 28. Qd3 {[%clk 0:00:56.9]} 28... Rxd6 {[%clk 0:01:27.8]} 29.
Qxd6 {[%clk 0:00:58.4]} 29... Qb7 {[%clk 0:01:22.7]} 30. Qc6 {[%clk 0:00:51.6]}
30... Ne4 {[%clk 0:01:22.1]} 31. Rd8+ {[%clk 0:00:48.8]} 31... Kh7 {[%clk
0:01:22.9]} 32. Rxb8 {[%clk 0:00:28.4]} 1-0

[Event "*** Titled Tuesday Blitz"]
[Site "Chess.com"]
[Date "2018.10.02"]
[Round "9"]
[White "Thee-Chessboy"]
[Black "tteshan"]
[Result "1-0"]
[WhiteElo "2303"]
[BlackElo "2014"]
[TimeControl "180+2"]
[EndTime "14:57:21 PDT"]
[Termination "Thee-Chessboy won by resignation"]

1. d4 {[%clk 0:03:01.7]} 1... d5 {[%clk 0:03:00.5]} 2. c4 {[%clk 0:03:01.6]}
2... dxc4 {[%clk 0:03:00.4]} 3. Nf3 {[%clk 0:03:00.5]} 3... Nf6 {[%clk
0:03:01.1]} 4. Qa4+ {[%clk 0:02:59.3]} 4... Nc6 {[%clk 0:03:00]} 5. g3 {[%clk
0:02:54.2]} 5... Bd7 {[%clk 0:02:58.7]} 6. Qxc4 {[%clk 0:02:52.8]} 6... e6
{[%clk 0:02:58.9]} 7. Bg2 {[%clk 0:02:51.7]} 7... Bd6 {[%clk 0:02:57.8]} 8. O-O
{[%clk 0:02:50.5]} 8... O-O {[%clk 0:02:58.6]} 9. Rd1 {[%clk 0:02:48.5]} 9... a6
{[%clk 0:02:57.8]} 10. a3 {[%clk 0:02:43.2]} 10... Ne7 {[%clk 0:02:54.7]} 11.
Nc3 {[%clk 0:02:37.8]} 11... Bc6 {[%clk 0:02:40]} 12. Ne5 {[%clk 0:02:34.3]}
12... Bxg2 {[%clk 0:02:35.9]} 13. Kxg2 {[%clk 0:02:32.7]} 13... c6 {[%clk
0:02:26.1]} 14. e4 {[%clk 0:02:27.8]} 14... Qc7 {[%clk 0:02:21.2]} 15. f4 {[%clk
0:02:25.2]} 15... Nd7 {[%clk 0:02:16.6]} 16. Nf3 {[%clk 0:02:11.5]} 16... Nc8
{[%clk 0:02:03.5]} 17. Be3 {[%clk 0:02:06.5]} 17... Ncb6 {[%clk 0:02:02.7]} 18.
Qe2 {[%clk 0:02:05.2]} 18... Be7 {[%clk 0:01:56.9]} 19. Rac1 {[%clk 0:02:03.7]}
19... Rfd8 {[%clk 0:01:52.3]} 20. d5 {[%clk 0:02:00]} 20... exd5 {[%clk
0:01:51.7]} 21. exd5 {[%clk 0:02:00]} 21... Nc8 {[%clk 0:01:39.2]} 22. dxc6
{[%clk 0:01:55.8]} 22... Qxc6 {[%clk 0:01:34.7]} 23. Nd5 {[%clk 0:01:52.3]}
23... Qe6 {[%clk 0:00:35]} 24. f5 {[%clk 0:01:42.1]} 24... Qe4 {[%clk
0:00:35.1]} 25. Rc4 {[%clk 0:01:31.5]} 25... Qxf5 {[%clk 0:00:15.1]} 26. Rxc8
{[%clk 0:01:29.4]} 26... Qe4 {[%clk 0:00:13.6]} 27. Rxa8 {[%clk 0:01:25.1]}
27... Rxa8 {[%clk 0:00:13.9]} 28. Rd4 {[%clk 0:01:24.1]} 28... Qe6 {[%clk
0:00:14.1]} 29. Nc7 {[%clk 0:01:23.2]} 1-0

[Event "*** Titled Tuesday Blitz"]
[Site "Chess.com"]
[Date "2018.10.02"]
[Round "9"]
[White "topotun"]
[Black "akretchetov"]
[Result "1-0"]
[WhiteElo "2689"]
[BlackElo "2281"]
[TimeControl "180+2"]
[EndTime "14:57:24 PDT"]
[Termination "topotun won by resignation"]

1. e4 {[%clk 0:03:01.9]} 1... e5 {[%clk 0:03:00.5]} 2. Nf3 {[%clk 0:03:03.2]}
2... Nc6 {[%clk 0:03:01.2]} 3. Bb5 {[%clk 0:03:04.5]} 3... a6 {[%clk 0:03:02.3]}
4. Ba4 {[%clk 0:03:06]} 4... d6 {[%clk 0:03:03.3]} 5. O-O {[%clk 0:03:05.9]}
5... Bd7 {[%clk 0:03:03.4]} 6. d4 {[%clk 0:03:07.1]} 6... b5 {[%clk 0:02:51.8]}
7. Bb3 {[%clk 0:03:08.1]} 7... exd4 {[%clk 0:02:49.3]} 8. c3 {[%clk 0:03:08.1]}
8... d3 {[%clk 0:02:36.5]} 9. Qxd3 {[%clk 0:03:07.7]} 9... Nf6 {[%clk
0:02:32.7]} 10. Ng5 {[%clk 0:02:37.4]} 10... Ne5 {[%clk 0:02:32.6]} 11. Qg3
{[%clk 0:02:38.6]} 11... h6 {[%clk 0:02:31.8]} 12. f4 {[%clk 0:02:37.7]} 12...
hxg5 {[%clk 0:02:25.8]} 13. fxe5 {[%clk 0:02:38.8]} 13... dxe5 {[%clk
0:02:16.5]} 14. Qxe5+ {[%clk 0:02:37.8]} 14... Qe7 {[%clk 0:02:17.6]} 15. Qxe7+
{[%clk 0:02:17.9]} 15... Bxe7 {[%clk 0:02:18.2]} 16. Bxg5 {[%clk 0:02:19.4]}
16... Nxe4 {[%clk 0:01:24.2]} 17. Bxe7 {[%clk 0:02:05.8]} 17... Kxe7 {[%clk
0:01:25.2]} 18. Rxf7+ {[%clk 0:02:07.2]} 18... Kd6 {[%clk 0:01:24.6]} 19. Nd2
{[%clk 0:02:01.8]} 19... Nc5 {[%clk 0:01:13.7]} 20. Rd1 {[%clk 0:01:59.7]} 20...
Kc6 {[%clk 0:01:06]} 21. Rxg7 {[%clk 0:01:44.4]} 21... Bf5 {[%clk 0:01:01.8]}
22. Nf3 {[%clk 0:01:35.5]} 22... Nxb3 {[%clk 0:00:57.4]} 23. axb3 {[%clk
0:01:37.4]} 23... Be4 {[%clk 0:00:53.9]} 24. Ne5+ {[%clk 0:01:29.9]} 24... Kb6
{[%clk 0:00:52]} 25. Nd7+ {[%clk 0:01:23.5]} 25... Kc6 {[%clk 0:00:52.5]} 26.
Ne5+ {[%clk 0:01:12.5]} 26... Kb7 {[%clk 0:00:53]} 27. Rdd7 {[%clk 0:01:11.6]}
27... Rac8 {[%clk 0:00:50.9]} 28. Nf7 {[%clk 0:01:09.4]} 28... Bc6 {[%clk
0:00:39]} 29. Re7 {[%clk 0:00:47.2]} 1-0